[Event "Lliga Catalana 2024"]
[Site "Catalonia"]
[Date "2024.01.20"]
[Round "1.1"]
[White "Peralta, Fernando"]
[Black "Aroshidze, Levan"]
[Result "1/2-1/2"]
[ECO "E48"]
[WhiteElo "2568"]
[BlackElo "2538"]
[Annotator "TA"]
[PlyCount "51"]
[EventDate "2024.01.18"]
[EventType "team-tourn"]
[EventCountry "ESP"]
[SourceTitle "playchess.com"]
[Source "ChessBase"]
[SourceQuality "1"]
[TimeControl "5400+30"]

{[%evp 13,51,-7,0,0,0,0,-9,0,-3,0,-11,-11,0,0,0,-2,16,0,0,0,0,0,0,0,0,-9,0,0,41,36,43,0,40,34,29,-485,0,0,340,-427]} 1. d4 {[%emt 0:00:03]} Nf6 {[%emt 0:00:10]} 2. c4 {[%emt 0:00:06]} e6 {[%emt 0:00:08]} 3. Nc3 {[%emt 0:00:05]} Bb4 {[%emt 0:00:18]} 4. e3 {[%emt 0:00:06]} O-O {[%emt 0:00:33]} 5. Bd3 {[%emt 0:00:06]} d5 {[%emt 0:00:06]} 6. cxd5 {[%emt 0:00:12]} exd5 {[%emt 0:00:09]} 7. Nge2 {[%emt 0:00:05]} Re8 {[%emt 0:00:33]} 8. Bd2 {[%emt 0:00:28] E48: Nimzo-Indian: Rubinstein: 5 Bd3 d5 including 6 Ne2, but excluding 6 a3.} Bd6 {[%emt 0:00:26]} 9. Rc1 {[%emt 1:33:49]} a6 {[%emt 1:32:37] Prevents Nb5} 10. O-O {[%emt 0:00:30] The position is equal.} Nbd7 {[%emt 0:00:30]} 11. Nf4 {[%emt 0:00:30]} c6 {[%emt 0:00:30]} 12. f3 {[%emt 0:00:30]} b5 {[%emt 0:00:30] [#]} 13. g4 $146 {[%emt 0:00:30]} ({Predecessor:} 13. Nce2 c5 14. dxc5 Bxc5 15. Nd4 Qb6 16. Nc2 b4 17. Qe1 a5 18. Qf2 Ne5 19. Rfd1 {0-1 Nakhbayeva,G (2295)-Goryachkina,A (2504) WchT (Women) 12th 2019 (1.4)}) 13... Nb6 {[%emt 0:00:00]} 14. b3 {Wards off Nc4} Nfd7 {[%emt 0:01:00]} 15. Nce2 {[%emt 0:00:00]} Bb7 {[%emt 0:00:00]} 16. Qe1 c5 {[%emt 0:01:00]} 17. dxc5 {[%emt 0:02:00]} Nxc5 {[%emt 0:00:00]} 18. Bb1 Nbd7 {[%emt 0:01:00]} 19. Qf2 {[%emt 0:01:00]} g6 {[%emt 0:00:30]} 20. Rcd1 {[%emt 0:00:30]} Qe7 {[%emt 0:00:00]} 21. Bc1 {[%emt 0:00:00]} Nb6 {[%emt 0:00:00]} 22. Rfe1 b4 {[%emt 0:01:30]} 23. Nd4 {[%emt 0:01:30]} a5 {[%emt 0:00:30] [#]} 24. Ba3 $2 {[%emt 0:00:00][%mdl 8192]} Be5 $2 {[%emt 0:00:30]} ({Black should try} 24... bxa3 $19 25. Nb5 Be5) 25. Bb2 $11 {[%emt 0:00:00]} Ba6 $2 {[%emt 0:00:30][%mdl 8192] [#]} (25... a4 $11) 26. Nb5 $4 {[%emt 0:00:00][%mdl 40960] Weighted Error Value: White=0.38/Black=0.58. An unexpected result.} 1/2-1/2

[Event "Lliga Catalana 2024"]
[Site "Catalonia"]
[Date "2024.03.09"]
[Round "1.1"]
[White "Edouard, Romain"]
[Black "De La Riva Aguado, Oscar"]
[Result "1-0"]
[ECO "C02"]
[WhiteElo "2523"]
[BlackElo "2439"]
[Annotator "TA"]
[PlyCount "69"]
[EventDate "2024.01.18"]
[EventType "team-tourn"]
[EventCountry "ESP"]
[SourceTitle "playchess.com"]
[Source "ChessBase"]
[SourceQuality "1"]
[TimeControl "5400+30"]

{[%evp 20,69,20,7,23,13,50,41,59,0,0,0,34,0,47,57,50,59,60,34,39,29,74,64,102,80,88,62,120,112,224,229,233,150,170,154,165,161,174,171,171,161,291,294,586,579,1152,1106,29988,-26,29977,29978]} 1. e4 {[%emt 0:00:03][%cal Be2e4,Be4e5][%mdl 32]} e6 {[%emt 0:00:27]} 2. d4 {[%emt 0:00:05]} d5 {[%emt 0:00:11]} 3. e5 {[%emt 0:00:03]} c5 {[%emt 0:00:07]} 4. c3 {[%emt 0:00:03]} Nc6 {[%emt 0:00:35]} 5. Nf3 {[%emt 0:00:06]} Bd7 {[%emt 0:00:48]} 6. Be2 {[%emt 0:01:34]} f6 {[%emt 0:00:50]} 7. O-O {[%emt 0:00:53]} fxe5 {[%emt 0:00:06]} 8. Nxe5 {[%emt 0:00:03]} Nxe5 {[%emt 0:00:08]} 9. dxe5 {[%emt 0:00:03]} Qc7 {[%emt 0:00:08]} 10. Re1 {[%emt 0:00:30]} O-O-O {[%emt 0:00:20]} 11. Bf1 {[%emt 0:00:04]} Ne7 {[%emt 0:09:15]} 12. a4 {[%emt 0:02:02]} Ng6 {[%emt 0:05:47]} 13. Na3 {[%emt 0:00:37]} c4 {[%emt 0:00:09][%cal Of8c5] Weiß steht etwas besser.} 14. Nb5 {[%emt 0:17:57]} Bxb5 {[%emt 0:04:26]} 15. axb5 {[%emt 0:00:23]} Bc5 {[%emt 0:01:54][%cal Oh8f8]} 16. Be3 {[%emt 0:00:08]} Ne7 {[%emt 0:10:28]} (16... Rhf8 $11 {scheint genauer.}) 17. b3 $14 {[%emt 0:03:20]} cxb3 {[%emt 0:33:27]} 18. Qxb3 {[%emt 0:00:37] Rxa7 wäre nun fies.} Kb8 {[%emt 0:00:26]} 19. Qa2 {[%emt 0:18:14]} Bxe3 {[%emt 0:02:58]} 20. Rxe3 {[%emt 0:02:32]} Nc8 {[%emt 0:04:35]} 21. c4 {[%emt 0:06:38]} Rhf8 {[%emt 0:01:32]} 22. cxd5 {[%emt 0:22:11]} Rxd5 {[%emt 0:00:06][%cal Oc7c5]} 23. Bc4 {[%emt 0:00:03][%cal Bf1c4,Bc4e2,Be2f3][%mdl 32]} Rxe5 {[%emt 0:00:07]} (23... Rc5 $1 $14 24. b6 (24. Bxe6 Rc1+ 25. Re1 Rc2 $16) 24... Qxb6) 24. b6 $1 $16 {[%emt 0:00:07]} ({Minderwertig wäre} 24. Bxe6 Rxe3 25. fxe3 Qc5 26. Bxc8 Qxe3+ (26... Rxc8 27. h3 $15) 27. Kh1 Rxc8 $17) 24... Qd6 {[%emt 0:00:04]} (24... Qc5 $16) 25. bxa7+ $18 {[%emt 0:02:28]} Ka8 {[%emt 0:00:12]} 26. Rb3 {[%emt 0:02:31][%cal Ob3b7]} ({Schwächer ist} 26. Bxe6 Rxe3 27. fxe3 Qd3 $16) 26... Rf7 {[%emt 0:09:46]} 27. Be2 {[%emt 0:12:41] Und jetzt Qb2 wäre schön.} Rc5 {[%emt 0:14:20]} 28. Bf3 {[%emt 0:01:08][%cal Ob3b7] Verhindert Qc6. jetzt Rxb7! und aus.} Rcc7 {[%emt 0:00:40]} 29. Qb1 {[%emt 0:05:43][%cal Ob3b7] Beabsichtigt Rxb7! und Matt.} Qe7 {[%emt 0:00:27]} 30. Qxh7 $40 {[%emt 0:00:43][%mdl 128] Droht stark Qg8. Weiss hat starken Angriff.} Qc5 {[%emt 0:00:29]} (30... Rf8 {ist eine bessere Verteidigung.} 31. Qd3 e5) 31. h3 {[%emt 0:00:47] Droht Qg8 und aus.} Rfe7 $2 {[%emt 0:00:22]} (31... Qf8 32. Qe4 Nd6) 32. Qg8 {[%emt 0:01:01] Qf8 ist eine echte Drohung.} e5 {[%emt 0:00:38]} 33. Be4 {[%emt 0:00:26]} Rf7 {[%emt 0:00:15] [#]} 34. Bxb7+ $1 {[%emt 0:00:35][%mdl 512]} Rxb7 {[%emt 0:00:05] [#]} 35. Qxf7 $3 {[%emt 0:00:03][%mdl 512] Gewichteter Fehlerwert: Weiß=0.30/Schwarz=0.79.  Fehler:       	---       	Schwarz=5     Ungenau:       	Weiß=3     	Schwarz=5     OK:         	Weiß=7     	Schwarz=7     Bester:       	Weiß=3     	Schwarz=1     Stark:        	Weiß=1     	---} 1-0

[Event "Lliga Catalana 2024"]
[Site "Catalonia"]
[Date "2024.01.20"]
[Round "1.1"]
[White "Ayats Llobera, Gerard"]
[Black "Cuartas, Jaime Alexander"]
[Result "1-0"]
[ECO "E48"]
[WhiteElo "2426"]
[BlackElo "2526"]
[Annotator "TA"]
[PlyCount "113"]
[EventDate "2024.01.18"]
[EventType "team-tourn"]
[EventCountry "ESP"]
[SourceTitle "playchess.com"]
[Source "ChessBase"]
[SourceQuality "1"]
[TimeControl "5400+30"]

{[%evp 13,113,-9,-14,-9,0,0,0,-6,22,11,57,49,50,50,76,79,93,93,86,83,138,152,188,185,254,178,183,161,264,256,264,252,256,182,242,240,407,405,370,391,385,382,397,371,395,384,382,378,432,430,497,491,616,605,585,576,597,589,690,675,690,681,690,574,577,569,579,558,670,668,668,668,836,807,654,431,467,445,1183,829,654,654,2060,1491,29980,29969,29963,12829,29983,29983,29984,29985,29985,29986,29989,29990,29990,318,313,0,29988,29989]} 1. d4 {[%emt 0:00:05]} Nf6 {[%emt 0:00:06]} 2. c4 {[%emt 0:00:05]} e6 {[%emt 0:00:03]} 3. Nc3 {[%emt 0:00:04]} Bb4 {[%emt 0:00:04]} 4. e3 {[%emt 0:00:04]} d5 {[%emt 0:00:05]} 5. cxd5 {[%emt 0:00:09]} exd5 {[%emt 0:00:06]} 6. Bd3 {[%emt 0:00:04]} O-O {[%emt 0:00:10]} 7. Nge2 {[%emt 0:00:07]} Re8 {[%emt 0:00:11]} 8. Bd2 {[%emt 0:00:07] E48: Nimzo-Indian: Rubinstein: 5 Bd3 d5 including 6 Ne2, but excluding 6 a3.} a6 {[%emt 0:00:20]} 9. O-O {[%emt 0:00:43]} Bd6 {[%emt 0:00:05]} 10. Rc1 {[%emt 0:04:04] The position is equal.} b6 {[%emt 0:00:16]} 11. Nf4 {[%emt 0:07:23] [#]} c5 $146 {[%emt 0:06:59]} (11... Bb7 $11) ({Predecessor:} 11... Bb7 12. Qf3 c5 13. Rfd1 Bxf4 14. Qxf4 c4 15. Bb1 b5 16. f3 Nc6 17. g4 g6 {0-1 Gledura,B (2652)-Matlakov,M (2674) Chess.com Rapid Wk6 Swiss 2022 (1)}) 12. Ncxd5 {[%emt 0:08:27]} (12. Nfxd5 {keeps more tension.} Nxd5 13. Nxd5 Bb7 14. e4) 12... Nxd5 {[%emt 0:00:17]} 13. Nxd5 {[%emt 0:00:13] Qh5 is the strong threat.} Bxh2+ {[%emt 0:00:10][%mdl 64] Discovered Attack} 14. Kxh2 {[%emt 0:00:06]} Qxd5 {[%emt 0:00:08]} 15. Bc4 {[%emt 0:01:16]} Qd6+ {[%emt 0:07:41]} 16. Kg1 {[%emt 0:00:33]} Bb7 {[%emt 0:00:08]} (16... Nc6 $142) 17. Qh5 $16 {[%emt 0:02:39]} Re7 {[%emt 0:07:38] [#]} 18. dxc5 {[%emt 0:03:49]} Qc6 {[%emt 0:00:10]} (18... Qxd2 $2 19. Rcd1 $18 (19. cxb6 $2 Nd7 $19) (19. cxb6 $2 Nd7 $19)) (18... bxc5 {is a better defense.} 19. Bc3 Nd7) 19. f3 {[%emt 0:01:03] And now Qg5 would win.} Nd7 {[%emt 0:00:16]} 20. Qg5 {[%emt 0:14:26] Against Ne5} Nf6 {[%emt 0:11:27]} (20... Rae8 $142 21. Bc3 Qg6 22. Qxg6 hxg6 23. cxb6 Nxb6) 21. Bc3 $40 {[%emt 0:03:38][%mdl 128] White has strong attack.} h6 {[%emt 0:03:39]} 22. Qh4 {[%emt 0:05:31]} bxc5 {[%emt 0:10:56]} 23. e4 {[%emt 0:00:31]} Rae8 {[%emt 0:00:34]} (23... Rd7 {was called for.} 24. Rfd1 Rad8 25. Rxd7 Rxd7) 24. Rfd1 {[%emt 0:14:46]} Nd7 $2 {[%emt 0:05:05]} (24... Bc8 25. Bb3 Qb6 26. Bxf6 Qxf6 27. Qxf6 gxf6 28. Rxc5 Re5) 25. Qg3 {[%emt 0:00:26][%csl Gc3][%cal Rg3g7]} Ne5 {[%emt 0:00:24]} 26. Bd5 {[%emt 0:00:41] This pair of bishops is nice.} Qb6 {[%emt 0:05:18]} 27. Bxb7 {[%emt 0:00:57]} c4+ {[%emt 0:00:05]} 28. Kh2 {[%emt 0:09:41]} Qxb7 {[%emt 0:00:14] [#]} 29. f4 $1 {[%emt 0:00:12]} Ng6 {[%emt 0:00:16]} 30. f5 {[%emt 0:00:11]} Qxe4 {[%emt 0:02:24]} 31. fxg6 {[%emt 0:00:17]} fxg6 {[%emt 0:00:10]} 32. Rd6 {[%emt 0:04:07][%cal Bd1d6,Bd6a6,Ba6a5,Ba5c5][%mdl 32]} Kh7 {[%emt 0:02:39]} 33. Rxa6 {[%emt 0:01:37]} Qf5 {[%emt 0:00:15]} 34. Ra5 {[%emt 0:00:42]} Qd7 {[%emt 0:00:04]} 35. Rc5 {[%emt 0:03:21]} Qa7 {[%emt 0:01:00]} 36. Rc6 {[%emt 0:01:50]} g5 {[%emt 0:00:15]} 37. Rxc4 {[%emt 0:00:24]} Qxa2 {[%emt 0:00:36]} 38. Rc7 {[%emt 0:00:46]} Qf7 {[%emt 0:00:09]} 39. Rxe7 {[%emt 0:00:48]} Rxe7 {[%emt 0:00:06]} 40. Qd3+ {[%emt 0:00:00]} Kg8 {[%emt 0:00:00]} 41. Rf1 {[%emt 0:00:00] Prevents Qf4+} Qh5+ {[%emt 0:40:31]} 42. Kg1 {[%emt 0:15:37]} Qe8 {[%emt 0:00:30]} 43. Qd5+ {[%emt 0:00:30]} Kh7 {[%emt 0:00:30]} 44. Bb4 {[%emt 0:00:30]} Rd7 {[%emt 0:00:30]} 45. Qf5+ {[%emt 0:00:30]} g6 {[%emt 0:00:30]} (45... Kg8 $142 46. Bc5 Rd8) 46. Qf2 {[%emt 0:00:30] aiming for Qc5.} g4 {[%emt 0:00:30]} 47. Bc3 {[%emt 0:00:30]} h5 {[%emt 0:00:30]} 48. Qf6 {[%emt 0:00:30] Strongly threatening Qg5.} Qe3+ {[%emt 0:00:30]} 49. Kh1 {[%emt 0:00:30][%csl Gc3][%cal Rf6h8]} Qe8 {[%emt 0:00:30]} 50. Qg5 {[%emt 0:00:30]} Rd3 {[%emt 0:00:30]} 51. Bd2 {[%emt 0:00:30]} Kg8 {[%emt 0:00:30]} 52. Rf6 {[%emt 0:00:30]} Kg7 {[%emt 0:00:30]} 53. Ra6 {[%emt 0:00:30]} Qe4 {[%emt 0:00:30]} 54. Qh6+ {[%emt 0:00:30]} Kf7 {[%emt 0:00:30]} 55. Ra7+ $2 {[%emt 0:00:30]} (55. Qh7+ {mates} Ke8 56. Qg8+ (56. Qxg6+ Qxg6 57. Rxg6 Kf7 $11) 56... Kd7 57. Ra7+ (57. Qxg6 Qxg6 58. Rxg6 Rxd2 $11) 57... Kd6 58. Qd8+ Kc5 59. Ra5+ Kc6 60. Ra6+ Kc5 61. Qb6+ Kc4 62. Ra4+ (62. Qxg6 Qxg6 63. Rxg6 Rxd2 $11) 62... Kd5 63. Ra5+ Kc4 64. Qb4#) 55... Ke6 {[%emt 0:00:30]} 56. Ra6+ $2 {[%emt 0:00:30]} (56. Ra3 $18 {Threatens to win with Qg5.} Rh3+ 57. Kg1 Qb1+ 58. Bc1 Rxa3 59. bxa3) 56... Kd5 $2 {[%emt 0:00:30][%mdl 8192]} (56... Kf7 $11) 57. Qg5+ {[%emt 0:00:30] Weighted Error Value: White=0.11 (very precise) /Black=0.36} ({Stronger than} 57. Rxg6 Rh3+ 58. Kg1 Qd4+ 59. Kf1 Qd3+ 60. Kg1 Qd4+ 61. Kf1 Qd3+ 62. Kg1 Qd4+ $11) 1-0

[Event "Lliga Catalana 2024"]
[Site "Catalonia"]
[Date "2024.01.20"]
[Round "1.2"]
[White "Alsina Leal, Daniel"]
[Black "Aloma Vidal, Robert"]
[Result "1-0"]
[ECO "C60"]
[WhiteElo "2495"]
[BlackElo "2446"]
[Annotator "RC"]
[PlyCount "107"]
[EventDate "2024.01.18"]
[EventType "team-tourn"]
[EventCountry "ESP"]
[SourceTitle "playchess.com"]
[Source "ChessBase"]
[SourceQuality "1"]
[TimeControl "5400+30"]

1. e4 {[%emt 0:00:06]} e5 {[%emt 0:00:25]} 2. Nf3 {[%emt 0:00:18]} Nc6 {[%emt 0:00:08]} 3. Bb5 {[%emt 0:00:09]} Nge7 {[%emt 0:00:08]} 4. O-O {[%emt 0:01:00]} Ng6 {[%emt 0:00:24]} 5. c3 {[%emt 0:02:02]} a6 {[%emt 0:07:32]} 6. Ba4 {[%emt 0:02:31]} b5 {[%emt 0:12:01]} 7. Bc2 {[%emt 0:07:06]} Be7 {[%emt 0:07:47]} 8. d4 {[%emt 0:02:57]} d6 {[%emt 0:06:49]} 9. Be3 {[%emt 1:18:51]} O-O {[%emt 0:00:51]} 10. Nbd2 {[%emt 0:00:00]} Kh8 {[%emt 0:02:08]} 11. d5 {[%emt 0:00:00]} Nb8 {[%emt 0:00:44]} 12. a4 {[%emt 0:00:00]} Bb7 {[%emt 0:11:24]} 13. axb5 {[%emt 0:00:00]} axb5 {[%emt 0:00:09]} 14. Qe2 {[%emt 0:00:00]} b4 {[%emt 0:08:57]} 15. Qb5 {[%emt 0:00:00]} Ba6 {[%emt 0:03:15]} 16. Qxb4 {[%emt 0:00:00]} c5 {[%emt 0:03:55]} 17. Qa5 {[%emt 0:00:00]} Qc8 {[%emt 0:32:23]} 18. c4 {[%emt 0:00:00]} Nd7 {[%emt 0:00:00]} 19. Qc3 {[%emt 0:00:00]} Nf6 {[%emt 0:00:00]} 20. Ra5 {[%emt 0:00:00]} Bd8 {[%emt 0:00:00]} 21. Ra4 {[%emt 0:00:00]} Rb8 {[%emt 0:00:00]} 22. Rfa1 {[%emt 0:00:00]} Bb7 {[%emt 0:00:00]} 23. b4 {[%emt 0:00:00]} cxb4 {[%emt 0:00:00]} 24. Rxb4 {[%emt 0:00:00]} Ra8 {[%emt 0:00:00]} 25. Rxa8 {[%emt 0:00:00]} Bxa8 {[%emt 0:00:00]} 26. Qa3 {[%emt 0:00:00]} Ng4 {[%emt 0:00:00]} 27. Bb6 {[%emt 0:00:00]} Nf4 {[%emt 0:00:00]} 28. Bxd8 {[%emt 0:00:00]} Rxd8 {[%emt 0:00:00]} 29. Rb6 {[%emt 0:01:49]} Qc7 {[%emt 0:00:00]} 30. Qb4 {[%emt 0:01:50]} f5 {[%emt 0:00:00]} 31. h3 {[%emt 0:01:39]} Nf6 {[%emt 0:00:00]} 32. Kh2 {[%emt 0:01:21]} h6 {[%emt 0:02:26]} 33. Nh4 {[%emt 0:02:02]} fxe4 {[%emt 0:01:32]} 34. Bxe4 {[%emt 0:00:08]} Qd7 {[%emt 0:03:19]} 35. Rb8 {[%emt 0:01:13]} Qe8 {[%emt 0:01:02]} 36. Rxd8 {[%emt 0:00:30]} Qxd8 {[%emt 0:00:01]} 37. Ng6+ {[%emt 0:01:26]} Kg8 {[%emt 0:00:41]} 38. Nxf4 {[%emt 0:00:16]} exf4 {[%emt 0:00:02]} 39. Bg6 {[%emt 0:00:29]} Qc7 {[%emt 0:00:36]} 40. Qa4 {[%emt 0:02:12]} Bb7 {[%emt 0:00:25]} 41. Ne4 {[%emt 0:00:13]} Nd7 {[%emt 0:00:12]} 42. Bf5 {[%emt 0:00:27]} Bc8 {[%emt 0:01:25]} 43. Qc6 {[%emt 0:00:25]} Qxc6 {[%emt 0:00:41]} 44. dxc6 {[%emt 0:00:05]} Nb6 {[%emt 0:00:04]} 45. Nxd6 {[%emt 0:00:20]} Bxf5 {[%emt 0:00:09]} 46. Nxf5 {[%emt 0:00:07]} Na8 {[%emt 0:00:56]} 47. Ne7+ {[%emt 0:00:44]} Kf7 {[%emt 0:00:09]} 48. Nd5 {[%emt 0:00:05]} Ke6 {[%emt 0:00:08]} 49. h4 {[%emt 0:01:28]} Kd6 {[%emt 0:00:18]} 50. c7 {[%emt 0:00:54]} Nxc7 {[%emt 0:00:20]} 51. Nxc7 {[%emt 0:00:18]} Kxc7 {[%emt 0:00:03]} 52. h5 {[%emt 0:00:15]} Kd6 {[%emt 0:00:10]} 53. Kh3 {[%emt 0:00:10]} f3 {[%emt 0:00:49]} 54. gxf3 {[%emt 0:02:04]} 1-0

[Event "Lliga Catalana 2024"]
[Site "Catalonia"]
[Date "2024.03.09"]
[Round "1.2"]
[White "Fluvia Poyatos, Jordi"]
[Black "Panelo Munoz, Marcelo A."]
[Result "1-0"]
[ECO "C45"]
[WhiteElo "2435"]
[BlackElo "2327"]
[Annotator "TA"]
[PlyCount "77"]
[EventDate "2024.01.18"]
[EventType "team-tourn"]
[EventCountry "ESP"]
[SourceTitle "playchess.com"]
[Source "ChessBase"]
[SourceQuality "1"]
[TimeControl "5400+30"]

{[%evp 12,77,0,0,42,20,54,38,51,49,51,63,60,33,72,76,82,85,60,46,99,94,104,95,125,87,102,39,63,91,131,129,134,129,145,137,144,134,216,218,477,455,561,482,705,706,689,576,863,834,765,765,29980,29981,29978,4702,29976,29977,29988,29989,29990,29991,29992,29993,29993,29994,29996,29997]} 1. e4 {[%emt 0:00:04]} e5 {[%emt 0:39:37]} 2. Nf3 {[%emt 0:00:27]} Nc6 {[%emt 0:00:16]} 3. d4 {[%emt 0:00:23]} exd4 {[%emt 0:00:07]} 4. Nxd4 {[%emt 0:00:08]} Bc5 {[%emt 0:00:13]} 5. Be3 {[%emt 0:00:58]} Qf6 {[%emt 0:00:25]} 6. c3 {[%emt 0:00:45]} Nge7 {[%emt 0:00:17]} 7. Bb5 {[%emt 0:01:20]} Nxd4 {[%emt 0:10:40]} 8. cxd4 {[%emt 0:09:50]} Bb4+ {[%emt 0:00:08]} 9. Nc3 {[%emt 0:01:28]} c6 {[%emt 0:05:36] Weiß steht etwas besser.} 10. Bd3 {[%emt 0:06:48]} d5 {[%emt 0:01:05]} 11. O-O {[%emt 0:00:59][%cal Oc3d5]} O-O {[%emt 0:09:32]} 12. Qc2 {[%emt 0:25:32]} Bxc3 {[%emt 0:19:25]} 13. e5 {[%emt 0:02:43]} ({Natürlich nicht} 13. Qxc3 $6 dxe4 14. Bxe4 Rd8 $11) 13... Qh4 {[%emt 0:00:53]} 14. bxc3 {[%emt 0:00:28]} f6 {[%emt 0:02:34]} 15. f4 {[%emt 0:03:07]} fxe5 {[%emt 0:01:58]} (15... Qh5 $14) 16. dxe5 $16 {[%emt 0:01:56]} Bf5 {[%emt 0:00:09]} 17. Bc5 $36 {[%emt 0:02:18][%mdl 2048] [#] Und g3 würde nun gewinnen. Weiss bestimmt, wo es lang geht.} Rf7 {[%emt 0:02:39] Schwarz hat schwache schwarze Felder} 18. g3 {[%emt 0:20:36]} Qh6 {[%emt 0:01:51]} 19. Rae1 {[%emt 0:01:29]} ({Vorzuziehen ist} 19. Bxe7 $16 Bxd3 20. Qxd3 Rxe7 21. Rae1) 19... Bxd3 {[%emt 0:00:56]} 20. Qxd3 {[%emt 0:00:06] Weiß behält die Zügel nun fest in der Hand.} Qe6 {[%emt 0:00:26]} 21. Bxe7 {[%emt 0:01:36]} Qxe7 {[%emt 0:00:07]} 22. f5 {[%emt 0:03:03] Weiß steht aktiver.} Rd8 {[%emt 0:00:23]} 23. e6 {[%emt 0:01:45]} Rf6 {[%emt 0:00:20]} 24. g4 {[%emt 0:00:31][%cal Bg3g4,Bg4f5][%mdl 32] [#] Zielt auf g5 ab.} Rff8 {[%emt 0:01:07]} (24... g6 $16 {kämpft weiter.} 25. Kh1 b6) 25. Qg3 $18 {[%emt 0:02:29] g5 ist eine echte Drohung.} h6 {[%emt 0:01:21]} (25... g6 26. Qe5 Rf6) 26. h4 {[%emt 0:02:08]} g6 {[%emt 0:00:48]} 27. Qf4 {[%emt 0:05:25] Und jetzt f6 wäre schön.} ({Weniger gut wäre} 27. fxg6 Rxf1+ 28. Kxf1 Rf8+ 29. Kg2 Rf6 $18) 27... gxf5 {[%emt 0:00:23]} 28. gxf5 {[%emt 0:02:45][%cal Of5f6] Beabsichtigt f6! und Matt.} Rf6 {[%emt 0:00:06]} 29. Re3 {[%emt 0:00:14]} Rdf8 {[%emt 0:00:13]} 30. Qe5 {[%emt 0:00:29]} Kh7 {[%emt 0:00:37]} 31. Rg3 {[%emt 0:00:21]} Rg8 {[%emt 0:01:12]} 32. Rxg8 {[%emt 0:00:11]} Kxg8 {[%emt 0:00:05] KQR-KQR} 33. Rf3 {[%emt 0:00:06]} (33. Rf2 $142 Kf8 34. Rg2 Qd8 35. e7+ Qxe7 36. Qb8+ Qe8 37. Rg8+ (37. Qxa7 $2 Rxf5 38. Qa3+ Kf7 $19) 37... Kxg8 38. Qxe8+ Rf8 39. Qg6+ Kh8 40. Qxh6+ Kg8 41. Qg6+ Kh8 42. Kh2) 33... Kh7 {[%emt 0:00:15]} 34. Rg3 {[%emt 0:00:37] Weiß setzt Matt.} d4 {[%emt 0:00:17]} 35. cxd4 {[%emt 0:00:30]} a5 {[%emt 0:01:15]} 36. h5 {[%emt 0:00:33]} Rf8 {[%emt 0:00:36]} 37. Rg6 {[%emt 0:01:07]} Rd8 {[%emt 0:00:27]} 38. f6 {[%emt 0:00:38]} Qb4 {[%emt 0:00:25]} 39. Qc7+ {[%emt 0:00:15] Gewichteter Fehlerwert: Weiß=0.06 (makellos) /Schwarz=0.43.  Fehler:       	Weiß=1     	Schwarz=3     Ungenau:       	Weiß=2     	Schwarz=3     OK:         	Weiß=12    	Schwarz=6     Bester:       	Weiß=2     	Schwarz=1} 1-0

[Event "Lliga Catalana 2024"]
[Site "Catalonia"]
[Date "2024.01.20"]
[Round "1.2"]
[White "Glek, Igor"]
[Black "Guerra Mendez, Jose Angel"]
[Result "1/2-1/2"]
[ECO "B27"]
[WhiteElo "2423"]
[BlackElo "2500"]
[Annotator "TA"]
[PlyCount "46"]
[EventDate "2024.01.18"]
[EventType "team-tourn"]
[EventCountry "ESP"]
[SourceTitle "playchess.com"]
[Source "ChessBase"]
[SourceQuality "1"]
[TimeControl "5400+30"]

{[%evp 9,46,15,18,0,-2,2,7,0,0,7,0,21,23,0,27,-28,0,0,0,0,0,-7,0,0,0,0,0,0,0,0,0,0,0,0,11,13,12,7,48]} 1. e4 {[%emt 0:00:03]} c5 {[%emt 0:00:27]} 2. Nf3 {[%emt 0:00:04]} g6 {[%emt 0:00:32]} 3. c3 {[%emt 0:04:26]} d5 {[%emt 0:00:20]} 4. Bb5+ {[%emt 0:02:09]} Bd7 {[%emt 0:11:15]} 5. Bxd7+ {[%emt 0:00:07]} Qxd7 {[%emt 0:00:04]} 6. d3 {[%emt 0:00:44] B27: Sicilian: 2 Nf3, unusual Black 2nd moves.} Nc6 {[%emt 0:01:29] [#] Prevents Ne5.} 7. O-O $146 {[%emt 0:00:03]} ({Predecessor:} 7. Qe2 Bg7 8. O-O Nf6 9. h3 O-O 10. e5 Ne8 11. Re1 Nc7 12. Nbd2 Ne6 13. Nb3 {1-0 Stremavicius,P (2209)-Vardanyan,A (2277) LTU-ch Vilnius 2021 (7)}) 7... dxe4 8. dxe4 {[%emt 1:26:54]} Qxd1 {[%emt 1:20:23]} 9. Rxd1 {[%emt 0:00:30]} Nf6 {[%emt 0:00:30]} 10. e5 {[%emt 0:00:30]} Nd7 {[%emt 0:00:30] [#]} 11. e6 $1 {[%emt 0:00:30]} fxe6 {[%emt 0:00:00]} 12. Nbd2 {[%emt 0:00:00]} (12. Ng5 $142) 12... Bh6 13. Ne4 {[%emt 0:01:00] The position is equal.} Bxc1 {[%emt 0:00:00]} 14. Raxc1 {[%emt 0:00:30]} h6 {[%emt 0:00:00]} 15. b4 b6 {[%emt 0:02:30]} 16. bxc5 {[%emt 0:00:00]} bxc5 {[%emt 0:00:30]} 17. Rb1 {[%emt 0:01:30]} O-O-O {[%emt 0:00:30]} 18. Nfd2 {[%emt 0:00:30]} Rhf8 {[%emt 0:00:30]} 19. h3 {[%emt 0:00:30]} Rf5 {[%emt 0:00:00]} 20. Nc4 {[%emt 0:00:00]} Rd5 {Prevents Ned6+.} 21. Re1 {[%emt 0:00:00]} Kc7 22. Ne3 {[%emt 0:01:30][%mdl 1024] White has compensation.} Rd3 {[%emt 0:00:00]} 23. Rb5 {[%emt 0:00:00]} a6 {[%emt 0:00:00] Not much happened in this game.   Weighted Error Value: White=0.07 (flawless) /Black=0.02 (flawless)} 1/2-1/2